bitfinex/quotes_BTCUSD_20260311
["timestamp","ask_amount","ask_price","bid_price","bid_amount"]
[1773238614633,0.00152,70267.0,70237.0,0.07118755]
[1773238614835,0.09145524,70266.0,70237.0,0.07118755]
[1773238615300,0.09145524,70266.0,70238.0,0.00152]
[1773238615506,0.09145524,70266.0,70235.0,0.00152]
[1773238615714,0.09145524,70264.0,70235.0,0.00148]
[1773238616371,0.09145524,70264.0,70232.0,0.0014]
[1773238616588,0.09145524,70264.0,70232.0,0.00136]
[1773238617450,0.09245524,70264.0,70233.0,0.50578123]
[1773238617655,0.09245524,70264.0,70234.0,0.07119059]
[1773238617859,0.09267525,70264.0,70234.0,0.07119059]
[1773238618065,0.00152,70263.0,70234.0,0.07119059]
[1773238618782,0.00222001,70264.0,70234.0,0.07119059]
[1773238618985,0.00374001,70264.0,70234.0,0.07119059]
[1773238619214,0.00274001,70264.0,70234.0,0.07119059]
[1773238619431,0.07390032,70264.0,70234.0,0.07119059]
[1773238619641,0.00222001,70264.0,70234.0,0.07119059]
[1773238619841,0.07138044,70264.0,70234.0,0.07119059]
[1773238620540,0.00022001,70264.0,70234.0,0.07119059]
[1773238620990,0.07138082,70264.0,70234.0,0.07219059]
[1773238621172,0.09145524,70263.0,70234.0,0.07219059]
[1773238621376,0.09145524,70263.0,70234.0,0.07119059]
[1773238621790,0.07116222,70263.0,70234.0,0.07119059]
[1773238622023,0.00152,70263.0,70234.0,0.07119059]
[1773238622551,0.09145524,70262.0,70234.0,0.07119059]
[1773238623776,0.07116238,70262.0,70234.0,0.07119059]
[1773238624890,0.09145524,70261.0,70234.0,0.07119059]
[1773238625921,0.07116424,70260.0,70234.0,0.07119059]
[1773238626134,0.16261948,70260.0,70234.0,0.07119059]
[1773238626300,0.00022001,70262.0,70234.0,0.07119059]
[1773238626658,0.09145524,70261.0,70234.0,0.07119059]
[1773238627223,0.00022001,70262.0,70234.0,0.07119059]
[1773238627542,0.07137415,70270.0,70240.0,0.12770286]
[1773238627702,0.00022001,70270.0,70234.0,0.07119059]
[1773238628100,0.07115714,70268.0,70234.0,0.07119059]
[1773238628300,0.09145524,70266.0,70234.0,0.07119059]
[1773238628621,0.09145524,70266.0,70235.0,0.00144]
[1773238628997,0.00022001,70270.0,70240.0,0.12764036]
[1773238629428,0.00022001,70277.0,70250.0,0.12764036]
[1773238629619,0.00022001,70277.0,70242.0,0.15524]
[1773238629814,0.09167525,70277.0,70243.0,0.00144]
[1773238630013,0.09167525,70277.0,70244.0,0.07118045]
[1773238630469,0.09145524,70276.0,70244.0,0.07118045]
[1773238631363,0.00022001,70277.0,70250.0,0.12764036]
[1773238631570,0.00022001,70277.0,70251.0,0.00144]
[1773238631792,0.14050997,70284.0,70251.0,0.00144]
[1773238631967,0.00152,70285.0,70261.0,0.07116323]
[1773238632198,0.24108216,70291.0,70261.0,0.07116323]
[1773238632199,0.11336335,70293.0,70262.0,0.00144]
[1773238632369,0.11336335,70295.0,70262.0,0.00144]
[1773238632664,0.18449226,70295.0,70262.0,0.00144]
[1773238632868,0.07112891,70295.0,70262.0,0.00144]
[1773238633498,0.07112785,70296.0,70262.0,0.00144]
[1773238633714,0.00022001,70297.0,70270.0,0.12764036]
[1773238633923,0.00022001,70297.0,70271.0,0.0711531]
[1773238634129,0.00022001,70297.0,70272.0,0.00148]
[1773238634345,1e-08,70301.0,70280.0,0.12764036]
[1773238634550,1e-08,70301.0,70281.0,0.00148]
[1773238634741,0.1686646,70314.0,70290.0,0.12764036]
[1773238635052,0.3000888,70320.0,70282.0,0.50578123]
[1773238635053,0.07110514,70319.0,70291.0,0.00148]
[1773238635261,0.09145524,70318.0,70292.0,0.00148]
[1773238635429,0.09145524,70318.0,70293.0,0.00148]
[1773238635644,0.00022001,70304.0,70294.0,0.00148]
[1773238635818,0.00022001,70304.0,70282.0,0.50578123]
[1773238635819,0.00022001,70304.0,70295.0,0.00148]
[1773238636191,0.00022001,70304.0,70297.0,0.07112679]
[1773238636521,0.00022001,70312.0,70297.0,0.07112679]
[1773238636755,0.0818104,70336.0,70297.0,0.07112679]
[1773238636756,0.08892524,70326.0,70300.0,0.12764036]
[1773238636964,0.07109603,70328.0,70300.0,0.12764036]
[1773238637161,0.0005271,70339.0,70310.0,0.12764036]
[1773238637367,0.0005271,70339.0,70311.0,0.00148]
[1773238637728,0.07106714,70357.0,70321.0,0.50578123]
[1773238638037,0.07106714,70357.0,70324.0,0.18427968]
[1773238638242,0.09145524,70356.0,70324.0,0.07109948]
[1773238638474,0.09145524,70356.0,70325.0,0.00148]
[1773238638674,0.09145524,70356.0,70324.0,0.07257948]
[1773238639099,0.01124,70358.0,70324.0,0.07257948]
[1773238639100,0.08230555,70358.0,70330.0,0.12764036]
[1773238639301,0.08230555,70358.0,70324.0,0.07257948]
[1773238639503,0.002,70356.0,70325.0,0.00148]
[1773238639704,0.09145524,70355.0,70325.0,0.00148]
[1773238639903,0.09297524,70355.0,70325.0,0.00148]
[1773238640233,0.14798633,70354.0,70326.0,0.07109746]
[1773238640402,0.07106613,70357.0,70326.0,0.07109746]
[1773238640565,0.07106613,70357.0,70327.0,0.00148]
[1773238640768,0.07691717,70373.0,70327.0,0.00148]
[1773238641068,0.44919577,70396.0,70326.0,0.07109746]
[1773238641069,0.07691717,70362.0,70326.0,0.07109746]
[1773238641292,0.07691717,70360.0,70324.0,0.07109847]
[1773238641529,0.07691717,70359.0,70327.0,0.00148]
[1773238641736,0.07843717,70359.0,70326.0,0.00148]
[1773238641940,0.07843717,70359.0,70327.0,0.00148]
[1773238642155,0.07691717,70357.0,70328.0,0.07257543]
[1773238642350,0.00012,70363.0,70328.0,0.07257543]
[1773238642351,0.07106411,70362.0,70330.0,0.12764036]
[1773238642548,0.07106411,70362.0,70328.0,0.07257543]
[1773238642549,0.07791717,70360.0,70328.0,0.07257543]
[1773238643047,0.07691717,70360.0,70328.0,0.07257543]
[1773238643252,0.07691717,70358.0,70328.0,0.07109543]
[1773238643457,0.00022001,70357.0,70329.0,0.00148]
[1773238643608,0.00022001,70357.0,70340.0,0.12764036]
[1773238643800,0.00022001,70357.0,70341.0,0.00148]
[1773238643998,0.00022001,70357.0,70343.0,0.07108027]
[1773238644831,0.07105727,70366.0,70343.0,0.07108027]
[1773238644832,1e-08,70369.0,70344.0,0.48223956]
[1773238645050,1e-08,70369.0,70350.0,0.12764036]
[1773238645220,1e-08,70369.0,70351.0,0.00148]
[1773238645423,0.07104009,70383.0,70351.0,0.00148]
[1773238645683,0.08176615,70376.0,70351.0,0.00148]
[1773238646091,0.07691717,70375.0,70345.0,0.07107825]
[1773238646292,0.07691717,70375.0,70352.0,0.00148]
[1773238646529,0.14795587,70385.0,70352.0,0.00148]
[1773238646737,0.07103887,70384.0,70352.0,0.00148]
[1773238647163,0.07691717,70383.0,70345.0,0.07107825]
[1773238647374,0.07691717,70383.0,70353.0,0.00148]
[1773238647879,0.07691717,70383.0,70345.0,0.07107825]
[1773238648051,0.07104089,70382.0,70345.0,0.07107825]
[1773238648251,0.07691717,70381.0,70346.0,0.00148]
[1773238648408,0.07691717,70381.0,70345.0,0.07107825]
[1773238648598,0.07691717,70381.0,70347.0,0.00148]
[1773238648801,0.12764036,70380.0,70325.0,0.07109847]
[1773238649008,0.07691717,70378.0,70330.0,0.12764036]
[1773238649665,0.07691717,70376.0,70330.0,0.12764036]
[1773238649839,0.00152,70375.0,70331.0,0.00148]
[1773238650041,0.07691717,70374.0,70331.0,0.00148]
[1773238650285,0.07691717,70372.0,70332.0,0.07109139]
[1773238650790,0.12764036,70370.0,70332.0,0.07109139]
[1773238650992,0.07691717,70369.0,70333.0,0.00148]
[1773238651297,0.07691717,70367.0,70334.0,0.00133068]
[1773238651506,0.07691717,70367.0,70325.0,0.07109847]
[1773238651710,0.07691717,70367.0,70326.0,0.00148]
[1773238651882,0.07691717,70367.0,70327.0,0.00148]
[1773238652299,0.07691717,70365.0,70328.0,0.07109543]
[1773238652466,0.07257076,70373.0,70340.0,0.12764036]
[1773238652670,0.07256618,70377.0,70341.0,0.00148]
[1773238652870,0.07691717,70378.0,70351.0,0.48223956]
[1773238653066,0.07125942,70384.0,70352.0,0.00148]
[1773238653442,0.07125951,70384.0,70352.0,0.00133072]
[1773238654096,0.07125951,70384.0,70351.0,0.48223956]
[1773238654310,0.07656718,70384.0,70354.0,0.07106916]
[1773238654497,0.14760641,70384.0,70354.0,0.07091985]
[1773238655112,0.07634717,70383.0,70354.0,0.07091985]
[1773238656420,0.14738763,70383.0,70354.0,0.07091985]
[1773238656627,0.07634717,70382.0,70354.0,0.07091985]
[1773238657178,0.00022001,70384.0,70354.0,0.07091985]
[1773238657378,0.00022001,70384.0,70360.0,0.12764036]
[1773238658006,0.00022001,70384.0,70361.0,0.00148]
[1773238658404,0.00022001,70384.0,70362.0,0.07106108]
[1773238659010,1e-08,70392.0,70370.0,0.1271926]
[1773238659211,1e-08,70392.0,70371.0,0.00152]
[1773238659212,0.07634717,70391.0,70371.0,0.00152]
[1773238659413,0.07634717,70391.0,70362.0,0.07106108]
[1773238659736,0.07634717,70391.0,70363.0,0.00152]
[1773238659915,0.07103154,70392.0,70363.0,0.00152]
[1773238660115,0.07103154,70392.0,70364.0,0.00152]
[1773238660116,0.07786717,70391.0,70364.0,0.00152]
[1773238660496,0.07786717,70391.0,70365.0,0.07105805]
[1773238660497,0.07634717,70389.0,70365.0,0.07105805]
[1773238660699,0.07634717,70389.0,70351.0,0.70887083]
[1773238660700,0.07634717,70389.0,70352.0,0.07107118]
[1773238661143,0.07103079,70393.0,70352.0,0.07107118]
[1773238661459,0.04595926,70395.0,70353.0,0.62935351]
[1773238661757,0.04595926,70391.0,70354.0,0.13992918]
[1773238661973,0.04595926,70391.0,70353.0,0.48942433]
[1773238661974,0.04595926,70391.0,70355.0,0.13992918]
[1773238662166,0.04595926,70391.0,70356.0,0.13992918]
[1773238662379,0.04595926,70391.0,70360.0,0.12764036]
[1773238662588,0.07102676,70396.0,70361.0,0.21251127]
[1773238662786,0.04595926,70395.0,70362.0,0.13992918]
[1773238663223,0.04595926,70395.0,70363.0,0.00152]
[1773238663421,0.04595926,70395.0,70363.0,0.00137076]
[1773238663865,0.04595926,70395.0,70364.0,0.00152]
[1773238664063,0.04595926,70395.0,70360.0,0.07106257]
[1773238664567,0.04595926,70392.0,70360.0,0.07106257]
[1773238664765,0.04595926,70392.0,70361.0,0.14042696]
[1773238664967,0.04595926,70392.0,70362.0,0.14042696]
[1773238665249,0.04595926,70388.0,70363.0,0.14042696]
[1773238665543,0.04595926,70388.0,70364.0,0.14194696]
[1773238665689,0.04595926,70388.0,70365.0,0.14042696]
[1773238665897,0.00022001,70389.0,70365.0,0.14042696]
[1773238666297,0.00022001,70389.0,70370.0,0.12764036]
[1773238666547,0.00022001,70389.0,70372.0,0.07090176]
[1773238666748,0.00022001,70389.0,70373.0,0.14194696]
[1773238666971,0.00022001,70389.0,70372.0,0.07090176]
[1773238666972,0.00022001,70389.0,70374.0,0.14042696]
[1773238667172,0.04747926,70388.0,70363.0,0.07106007]
[1773238667328,0.04747926,70388.0,70357.0,0.24113003]
[1773238667509,0.04595926,70386.0,70358.0,0.00152]
[1773238668256,0.04595926,70386.0,70357.0,0.07106613]
[1773238668819,0.04595926,70384.0,70357.0,0.07106613]
[1773238669019,0.04595926,70384.0,70356.0,0.07228776]
[1773238669653,0.07103786,70388.0,70356.0,0.07228776]
[1773238669654,13.99390951,70397.0,70356.0,0.07213853]
[1773238669832,13.99390951,70397.0,70371.0,0.50653697]
[1773238669833,12.65095909,70397.0,70371.0,0.50653697]
[1773238670049,12.65095909,70397.0,70372.0,0.00152]
[1773238670882,12.65081054,70397.0,70373.0,0.07090116]
[1773238671729,12.37556644,70397.0,70380.0,0.12764036]
[1773238672142,12.37456644,70397.0,70373.0,0.07090116]
[1773238673091,12.37456644,70397.0,70380.0,0.001]
[1773238673296,12.37456644,70397.0,70381.0,0.00152]
[1773238673520,0.00022001,70394.0,70381.0,0.00152]
[1773238673717,12.37456644,70397.0,70381.0,0.00152]
[1773238674907,12.37456644,70397.0,70382.0,0.07104089]
[1773238675869,12.37608644,70397.0,70382.0,0.07104089]
[1773238676080,12.37456644,70397.0,70382.0,0.07104089]
[1773238676228,0.00152,70396.0,70382.0,0.07104089]
[1773238676626,12.37456644,70397.0,70382.0,0.07104089]
[1773238676851,12.37608644,70397.0,70382.0,0.07104089]
[1773238677420,0.00152,70396.0,70382.0,0.07104089]
[1773238677668,0.00152,70396.0,70376.0,0.07104605]
[1773238678176,0.00152,70395.0,70376.0,0.07104605]
[1773238678346,0.00152,70394.0,70376.0,0.07104605]
[1773238678563,0.00152,70393.0,70376.0,0.07104605]
[1773238678944,0.00152,70393.0,70375.0,0.07104694]
[1773238679285,0.07102683,70396.0,70375.0,0.07104694]
[1773238679483,0.00152,70392.0,70375.0,0.07104694]
[1773238679663,0.00152,70392.0,70373.0,0.07104694]
[1773238679870,0.17036,70393.0,70371.0,0.07105098]
[1773238680071,0.17188,70392.0,70371.0,0.07105098]
[1773238680395,0.00152,70391.0,70371.0,0.07105098]
[1773238680548,0.17036,70393.0,70371.0,0.12283041]
[1773238680755,0.17036,70393.0,70367.0,0.07105199]
[1773238680756,0.00152,70392.0,70364.0,0.071059]
[1773238681115,0.0710318,70391.0,70362.0,0.07105906]
[1773238681601,12.54492644,70397.0,70363.0,0.05177943]
[1773238681806,0.07254732,70396.0,70365.0,0.05177943]
[1773238682013,0.07254732,70396.0,70364.0,0.00152]
[1773238682211,0.00022001,70392.0,70364.0,0.05329943]
[1773238683001,0.0710318,70391.0,70365.0,0.07105805]
[1773238683616,0.07125181,70392.0,70365.0,0.07105805]
[1773238683617,0.00152,70390.0,70370.0,0.12764036]
[1773238683820,11.6297689,70397.0,70380.0,0.12764036]
[1773238684017,11.06121724,70397.0,70382.0,0.05177943]
[1773238684538,11.06121724,70397.0,70370.0,0.12764036]
[1773238684539,11.06121724,70397.0,70383.0,0.00152]
[1773238684791,11.13224319,70397.0,70372.0,0.05177943]
[1773238684959,11.13224319,70397.0,70371.0,0.07105199]
[1773238685193,0.17196,70396.0,70371.0,0.07105199]
[1773238685609,0.17196,70396.0,70370.0,0.07257205]
[1773238685987,0.17196,70395.0,70370.0,0.07257205]
[1773238686200,0.17044,70395.0,70370.0,0.07257205]
[1773238686517,0.00152,70394.0,70370.0,0.07257205]
[1773238686900,0.00152,70393.0,70371.0,0.05177943]
[1773238687065,11.13224319,70397.0,70372.0,0.07105098]
[1773238687295,11.13224319,70397.0,70373.0,0.05177943]
[1773238687496,0.00152,70396.0,70373.0,0.05177943]
[1773238687765,0.00152,70395.0,70373.0,0.05177943]
[1773238687906,11.06121724,70397.0,70373.0,0.05177943]
[1773238688111,0.00152,70394.0,70373.0,0.05177943]
[1773238689009,11.13224321,70397.0,70373.0,0.05177943]
[1773238689209,11.06121724,70397.0,70375.0,0.05177943]
[1773238689422,0.00152,70396.0,70377.0,0.05177943]
[1773238689844,11.06121724,70397.0,70377.0,0.05177943]
[1773238690029,0.00152,70396.0,70381.0,0.04615981]
[1773238690227,11.06121724,70397.0,70382.0,0.04767981]
[1773238690613,11.06121724,70397.0,70363.0,0.07105906]
[1773238690614,0.04526012,70396.0,70363.0,0.07105906]
[1773238690822,0.04526012,70396.0,70365.0,0.0002]
[1773238691092,0.04526012,70396.0,70366.0,0.00152]
[1773238691288,0.07254777,70395.0,70370.0,0.12716138]
[1773238691522,0.00152,70394.0,70370.0,0.12716138]
[1773238691731,11.06121724,70397.0,70380.0,0.12716138]
[1773238691732,10.31943857,70397.0,70380.0,0.12716138]
[1773238692021,10.31943857,70397.0,70382.0,0.04550376]
[1773238693191,10.31943857,70397.0,70383.0,0.07103988]
[1773238693654,0.00152,70396.0,70384.0,0.00152]
[1773238693957,0.00152,70396.0,70383.0,0.05510763]
[1773238694101,0.00152,70396.0,70379.0,0.07104352]
[1773238694305,0.00152,70396.0,70378.0,0.0710442]
[1773238694552,0.00152,70396.0,70377.0,0.07104391]
[1773238694752,0.00152,70396.0,70373.0,0.07256931]
[1773238694980,0.00152,70396.0,70371.0,0.07104997]
[1773238695183,0.00152,70396.0,70369.0,0.07105345]
[1773238695184,0.07102777,70395.0,70369.0,0.07105345]
[1773238695315,0.00152,70394.0,70370.0,0.00152]
[1773238695512,0.00152,70394.0,70370.0,0.04702376]
[1773238695851,0.07102777,70396.0,70370.0,0.04702376]
[1773238695852,0.00152,70393.0,70370.0,0.04702376]
[1773238696070,0.07102777,70396.0,70370.0,0.17418514]
[1773238696233,0.00152,70395.0,70371.0,0.04550376]
[1773238696642,0.00152,70394.0,70371.0,0.04550376]
[1773238697247,0.07102978,70393.0,70371.0,0.07105199]
[1773238697650,0.07102978,70393.0,70372.0,0.00152]
[1773238697855,0.07102978,70393.0,70368.0,0.00152]
[1773238698989,0.00152,70392.0,70368.0,0.00152]
[1773238699284,0.0710318,70391.0,70369.0,0.07105401]
[1773238700073,0.00152,70390.0,70369.0,0.07105401]
[1773238700478,0.07102978,70393.0,70369.0,0.07105401]
[1773238700826,0.00152,70392.0,70371.0,0.06501157]
[1773238700962,0.00152,70391.0,70372.0,0.00152]
[1773238701153,0.07103281,70390.0,70373.0,0.07104997]
[1773238701352,0.00152,70391.0,70374.0,0.00152]
[1773238701811,0.07255224,70391.0,70374.0,0.00152]
[1773238702001,0.07255224,70391.0,70367.0,0.07105556]
[1773238702199,0.07255224,70391.0,70368.0,0.00152]
[1773238702620,0.07125181,70393.0,70370.0,0.12716138]
[1773238702621,0.07125009,70393.0,70370.0,0.12716138]
[1773238702913,0.00022001,70393.0,70371.0,0.06501157]
[1773238703082,0.0005,70390.0,70371.0,0.06501157]
[1773238703412,0.0715329,70390.0,70372.0,0.07105098]
[1773238703583,0.0005,70390.0,70372.0,0.07105098]
[1773238703781,0.0005,70390.0,70373.0,0.06501157]
[1773238703782,0.00202,70390.0,70373.0,0.06501157]
[1773238703986,0.0005,70390.0,70375.0,0.06501157]
[1773238704368,0.07153361,70390.0,70375.0,0.06501157]
[1773238704715,0.07153361,70390.0,70372.0,0.00152]
[1773238704923,0.07153361,70390.0,70371.0,0.07105098]
[1773238705124,0.00152,70389.0,70371.0,0.07105098]
[1773238705323,0.07103483,70388.0,70371.0,0.07105098]
[1773238706923,0.07153361,70390.0,70371.0,0.07105098]
[1773238707253,0.07153361,70390.0,70373.0,0.06501157]
[1773238707254,0.07255418,70389.0,70373.0,0.06501157]
[1773238707443,0.07255418,70389.0,70374.0,0.07104896]
[1773238707767,0.07103382,70389.0,70374.0,0.07104896]
[1773238708127,0.07113632,70389.0,70374.0,0.07104896]
[1773238708735,0.00152,70388.0,70375.0,0.06501157]
[1773238708986,0.0001025,70389.0,70375.0,0.06501157]
[1773238709141,0.00152,70388.0,70375.0,0.06501157]
[1773238709342,0.07255494,70388.0,70376.0,0.07104694]
[1773238709706,0.07255493,70388.0,70376.0,0.07104694]
[1773238709927,0.00022001,70392.0,70376.0,0.07104694]
[1773238710100,9.45715308,70397.0,70380.0,0.52724266]
[1773238710275,9.45715308,70397.0,70381.0,0.06501157]
[1773238710797,8.23112309,70397.0,70381.0,0.06501157]
[1773238711023,7.74131729,70397.0,70381.0,0.06501157]
[1773238711233,4.20569453,70397.0,70381.0,0.06501157]
[1773238711443,3.07757822,70397.0,70389.0,0.07103382]
[1773238711613,0.00022001,70399.0,70397.0,0.10204592]
[1773238711823,0.01888699,70398.0,70397.0,0.16705749]
[1773238712042,0.00037,70421.0,70397.0,0.10204592]
[1773238712043,0.07137221,70421.0,70397.0,0.10204592]
[1773238712379,1.5,70420.0,70401.0,0.06501157]
[1773238712583,1.5,70420.0,70402.0,0.00152]
[1773238712920,1.5,70420.0,70401.0,0.06501157]
[1773238713272,1.5,70420.0,70403.0,0.17164059]
[1773238713472,1.5,70420.0,70406.0,0.07101667]
[1773238713896,0.07100356,70419.0,70405.0,0.06501157]
[1773238714073,1.57100356,70420.0,70405.0,0.07101688]
[1773238714274,1.57100356,70420.0,70403.0,0.07101948]
[1773238714275,1.57100356,70420.0,70403.0,0.00152]
[1773238715148,1.5,70420.0,70404.0,0.06501157]
[1773238715324,1.57100297,70420.0,70404.0,0.06501157]
[1773238715464,1.57100297,70420.0,70405.0,0.07101768]
[1773238715670,1.5,70420.0,70405.0,0.07101768]
[1773238716091,1.57100318,70420.0,70405.0,0.07101768]
[1773238716820,1.57100318,70420.0,70397.0,0.30615696]
[1773238716821,0.97100318,70420.0,70397.0,0.17012059]
[1773238716968,0.6,70419.0,70401.0,0.00152]
[1773238717171,0.00152,70418.0,70397.0,0.00152]
[1773238717394,0.06538596,70418.0,70386.0,0.21271047]
[1773238717596,0.06386596,70416.0,70379.0,0.00152]
[1773238718053,0.17048,70415.0,70379.0,0.00152]
[1773238718168,0.23434596,70414.0,70379.0,0.00152]
[1773238718534,0.97100558,70417.0,70379.0,0.00152]
[1773238718535,0.17048,70413.0,70379.0,0.00152]
[1773238718747,0.06538596,70412.0,70379.0,0.00152]
[1773238718936,0.17048,70414.0,70380.0,0.06501157]
[1773238719135,0.00152,70411.0,70380.0,0.06501157]
[1773238719698,0.5725369,70409.0,70382.0,0.06501157]
[1773238720098,0.00152,70408.0,70382.0,0.06501157]
[1773238720302,0.00152,70407.0,70382.0,0.06501157]
[1773238720941,2.10402962,70406.0,70382.0,0.06501157]
[1773238721387,0.00152,70405.0,70383.0,0.00152]
[1773238721812,0.07101869,70404.0,70384.0,0.07255887]
[1773238722221,0.07101869,70404.0,70372.0,0.28360352]
[1773238722222,1.5,70403.0,70370.0,0.28360352]
[1773238722421,0.0913451,70402.0,70371.0,0.00152]
[1773238723179,0.0913451,70402.0,70368.0,0.0002]
[1773238723381,0.0913451,70399.0,70357.0,0.28380352]
[1773238723537,0.0913451,70389.0,70357.0,0.0002]
[1773238723888,0.172,70398.0,70351.0,0.07107159]
[1773238723889,0.0913451,70377.0,70351.0,0.28360352]
[1773238724056,0.00152,70376.0,70351.0,0.07107213]
[1773238724238,0.00152,70376.0,70350.0,0.0002]
[1773238724440,1.5,70375.0,70350.0,0.07127304]
[1773238724641,1.5,70375.0,70350.0,0.0002]
[1773238724838,1.5,70375.0,70350.0,0.07127312]
[1773238725048,0.00152,70374.0,70351.0,0.28360352]
[1773238725460,0.00152,70374.0,70352.0,0.00152]
[1773238725710,1.501,70375.0,70352.0,0.00152]
[1773238725929,0.07105098,70372.0,70353.0,0.07107017]
[1773238726147,0.07105098,70372.0,70351.0,0.28360352]
[1773238726378,0.6,70371.0,70351.0,0.35467541]
[1773238726570,1.5,70374.0,70352.0,0.09102463]
[1773238726724,0.07104602,70377.0,70352.0,0.09102463]
[1773238726928,0.07256602,70377.0,70352.0,0.09102463]
[1773238727124,1.57104492,70378.0,70352.0,0.09102463]
[1773238727927,1.57104492,70378.0,70353.0,0.07107017]
[1773238728132,1.57104492,70378.0,70354.0,0.09102463]
[1773238728649,1.5,70378.0,70354.0,0.09102463]
[1773238728857,1.5710454,70378.0,70354.0,0.09102463]
[1773238729672,0.6710454,70378.0,70355.0,0.00152]
[1773238730425,0.6710454,70378.0,70356.0,0.07106714]
[1773238731101,0.58727818,70376.0,70354.0,0.001]
[1773238731300,0.90152,70377.0,70355.0,0.0918746]
[1773238731301,0.9,70377.0,70355.0,0.0918746]
[1773238731469,0.9,70377.0,70355.0,0.0933946]
[1773238732646,0.07104694,70376.0,70356.0,0.07106714]
[1773238732843,0.6,70376.0,70357.0,0.0918746]
[1773238733298,0.07102575,70397.0,70361.0,0.0918746]
[1773238733504,0.70890789,70396.0,70370.0,0.12716138]
[1773238733813,0.07101768,70405.0,70381.0,0.0918746]
[1773238733814,0.70890789,70405.0,70381.0,0.0918746]
[1773238734003,0.07101264,70410.0,70383.0,0.0918746]
[1773238734379,0.70890789,70409.0,70383.0,0.0918746]
[1773238734562,0.70890789,70409.0,70384.0,0.07103887]
[1773238734775,0.70890789,70409.0,70385.0,0.0918746]
[1773238735214,0.33220764,70409.0,70385.0,0.0918746]
[1773238735837,0.33220764,70409.0,70391.0,0.0918746]
[1773238736115,0.01124,70415.0,70393.0,0.0918746]
[1773238736263,0.01124,70415.0,70385.0,0.001]
[1773238736264,0.00022001,70416.0,70401.0,0.0918746]
[1773238736482,0.11496861,70414.0,70402.0,0.00152]
[1773238736686,0.11496861,70414.0,70403.0,0.0710197]
[1773238736887,0.11496861,70414.0,70403.0,0.1628943]
[1773238737116,0.11496861,70414.0,70403.0,0.0710197]
[1773238737340,0.00022001,70420.0,70404.0,0.0918746]
[1773238738772,0.00022001,70420.0,70406.0,0.0918746]
[1773238739271,0.07122357,70420.0,70406.0,0.0918746]
[1773238739470,0.00022001,70420.0,70406.0,0.0918746]
[1773238740657,0.00022001,70420.0,70406.0,0.0928746]
[1773238740858,0.00022001,70420.0,70407.0,0.07101566]
[1773238741042,0.07122293,70420.0,70408.0,0.0918746]
[1773238741243,0.07122293,70420.0,70402.0,0.0002]
[1773238741244,0.07122271,70420.0,70402.0,0.0002]
[1773238741430,0.07122271,70420.0,70403.0,0.00152]
[1773238741631,0.00022001,70420.0,70404.0,0.0933946]
[1773238742268,0.07122305,70420.0,70404.0,0.0933946]
[1773238742668,0.00022001,70420.0,70404.0,0.0933946]
[1773238742873,0.07122264,70420.0,70405.0,0.07101768]
[1773238743156,0.00022001,70420.0,70405.0,0.07101768]
[1773238743347,0.00022001,70420.0,70405.0,0.16289228]
[1773238743552,0.07122275,70420.0,70405.0,0.07101768]
[1773238744098,0.07122275,70420.0,70406.0,0.00152]
[1773238744307,0.00022001,70420.0,70407.0,0.0918746]
[1773238744504,0.03564282,70457.0,70410.0,0.12716138]
[1773238744505,0.07098641,70437.0,70410.0,0.12716138]
[1773238744862,0.07098641,70437.0,70410.0,0.07101264]
[1773238745010,0.07097121,70452.0,70410.0,0.07101264]
[1773238745011,0.00152,70456.0,70421.0,0.0918746]
[1773238745207,0.07097848,70444.0,70422.0,0.0933946]
[1773238745533,0.22739411,70441.0,70411.0,0.0918746]
[1773238745732,0.07098239,70440.0,70420.0,0.0918746]
[1773238745908,0.07135199,70441.0,70421.0,0.0918746]
[1773238746111,0.07135199,70441.0,70421.0,0.0928746]
[1773238746294,0.00037,70441.0,70422.0,0.00148]
[1773238746495,0.68493987,70450.0,70430.0,0.0918746]
[1773238746693,0.68493987,70450.0,70431.0,0.00148]
[1773238746896,0.07097332,70449.0,70433.0,0.07098945]
[1773238747094,0.07097332,70449.0,70422.0,0.07100053]
[1773238747318,0.07097332,70449.0,70424.0,0.0918746]
[1773238747723,0.00022001,70432.0,70424.0,0.0918746]
[1773238747931,0.00022001,70432.0,70422.0,0.07200053]
[1773238748131,0.61396737,70431.0,70405.0,0.2488346]
[1773238748326,0.61396737,70431.0,70407.0,0.00148]
[1773238748708,0.61396737,70431.0,70408.0,0.0918746]
[1773238749034,0.07086297,70430.0,70409.0,0.07101364]
[1773238749752,0.04723905,70429.0,70410.0,0.00148]
[1773238749903,0.04723905,70429.0,70398.0,0.0002]
[1773238750110,0.04723905,70429.0,70399.0,0.00148]
[1773238750320,0.68495984,70431.0,70401.0,0.0918746]
[1773238751060,0.07099348,70429.0,70411.0,0.16288623]
[1773238751220,0.00022001,70432.0,70412.0,0.00148]
[1773238751419,0.07097332,70449.0,70413.0,0.0918746]
[1773238751735,0.07097332,70449.0,70421.0,0.0918746]
[1773238752123,0.07097332,70449.0,70423.0,0.0918746]
[1773238753137,0.07097332,70449.0,70424.0,0.07099852]
[1773238753794,0.07097332,70449.0,70417.0,0.0918746]
[1773238753795,0.00148,70448.0,70418.0,0.07100457]
[1773238753938,0.00148,70448.0,70406.0,0.07101625]
[1773238753939,0.0439327,70447.0,70419.0,0.00148]
[1773238754139,0.00148,70448.0,70420.0,0.00148]
[1773238754322,0.00148,70447.0,70421.0,0.00148]
[1773238754659,0.07097332,70449.0,70423.0,0.0918746]
[1773238754838,0.07097332,70449.0,70424.0,0.00148]
[1773238755301,0.0709677,70455.0,70426.0,0.0918746]
[1773238756157,0.00022001,70449.0,70426.0,0.0918746]
[1773238756887,0.00022001,70449.0,70427.0,0.00148]
[1773238757085,0.00022001,70449.0,70428.0,0.00148]
[1773238757315,0.07097433,70448.0,70429.0,0.00148]
[1773238757601,0.07245433,70448.0,70430.0,0.00148]
[1773238757801,0.0711942,70449.0,70431.0,0.00148]
[1773238758001,0.07097433,70448.0,70432.0,0.00148]
[1773238758362,0.07119434,70449.0,70432.0,0.00148]
[1773238758564,0.07119434,70449.0,70427.0,0.09940448]
[1773238758565,0.07119375,70449.0,70427.0,0.09940448]
[1773238758874,0.07119355,70449.0,70428.0,0.00148]
[1773238759078,0.07119355,70449.0,70427.0,0.09940448]
[1773238759278,0.00022001,70449.0,70430.0,0.09940448]
[1773238759484,0.07119337,70449.0,70431.0,0.00148]
[1773238759778,0.07119346,70449.0,70431.0,0.00148]
[1773238759984,0.07119336,70449.0,70431.0,0.00148]
[1773238760188,0.00022001,70449.0,70431.0,0.00148]
[1773238760373,0.00022001,70449.0,70432.0,0.09940448]
[1773238760573,0.00022001,70449.0,70433.0,0.00148]
[1773238760785,0.00022001,70449.0,70434.0,0.09940448]
[1773238761392,0.07119337,70449.0,70435.0,0.07098743]
[1773238761906,0.07119337,70449.0,70436.0,0.00148]